{"text_format":"1","workbook":"xlsx","n_sheets":2,"sheets":["СПИСОК","ПОИСК"],"not_rendered":{"charts":0,"images":0,"macros":1,"external_links":1,"defined_names":8,"comments":0,"pivot_tables":0},"unopened":[],"bounds":{"document_bytes":16777216,"sheet_cells":100000,"rows_first":2000,"rows_last":500,"rows_between":2000,"halvings":0,"cell_chars":16384,"cell_head_chars":4096},"cells_cut":0,"cells_raw":0,"read":"whole","date_system":"1900"}

{"sheet":"СПИСОК","index":0,"n_rows":363,"n_cols":19,"rows_kept":363,"cut":false,"hidden":false,"merged":[]}
[]
[{"$f":"ADDRESS(A6,1,)","v":"$A$3"},"Список членов СТСН"]
["№ уч.","Свидетельство на уч.","Фамилия","Имя","Очество","Член СТСН"," Основной Тел.","Резервный тел.","Личный Email","почтовый индекс","Город","Адрес регистрации","Площадь участка","Кадастр","Улица","Газ учред.","Газ польз.","Место"]
[{"$f":"ПОИСК!C3","v":3}]
[{"$f":"DGET($A$7:$R$362,COLUMN(A5),$A$3:$R$4)","v":3},3,"Баранова","Мария","Михайловна","Нет данных",{"$error":"#VALUE!"},"Нет данных","Нет данных","Нет данных","Нет данных","Нет данных","Нет данных","Нет данных","Нет данных","Нет данных","Нет данных",{"$error":"#VALUE!"}]
[{"$f":"MATCH(A4,A8:A375,0)","v":3},{"$f":"HYPERLINK(\"#'Список'!B\"&A6+6,VLOOKUP(A6,A8:R362,2,0))","v":3},null,null,null,null,null,null,123]
["№ уч.","Свидетельство на уч.","Фамилия","Имя","Очество","Член СТСН"," Основной Тел.","Резервный тел.","Личный Email","почтовый индекс","Город","Адрес регистрации","Площадь участка","Кадастр","Улица","Газ учред.","Газ польз.","Место","Примечания"]
[1,11,"Рутберг","Борис","Нет данных","Нет данных",null,"h","I","J","K","L","M","N","O","P","Q","R"]
[2,22,"Баранов","Игорь","Николаевич","Нет данных",null,"Нет данных","Нет данных","Нет данных","Нет данных","Нет данных","Нет данных","Нет данных","Нет данных","Нет данных","Нет данных","Нет данных"]
[3,3,"Баранова","Мария","Михайловна","Нет данных",null,"Нет данных","Нет данных","Нет данных","Нет данных","Нет данных","Нет данных","Нет данных","Нет данных","Нет данных","Нет данных"]
[4,4,"Баранова","Мария","Михайловна","Нет данных",null,"Нет данных","Нет данных","Нет данных","Нет данных","Нет данных","Нет данных","Нет данных","Нет данных","Нет данных","Нет данных","Нет данных"]
[5,5,"Каюшин","Олег","Игоревич","Нет данных",null,"Нет данных","Нет данных","Нет данных","Нет данных","Нет данных","Нет данных","Нет данных","Нет данных","Нет данных","Нет данных","Нет данных"]
[6,6,"Каюшин","Олег","Игоревич","Нет данных",null,"Нет данных","Нет данных","Нет данных","Нет данных","Нет данных","Нет данных","Нет данных","Нет данных","Нет данных","Нет данных","Нет данных"]
[7,7,"Комолова","Ольга","Викторовна","Нет данных",null,"Нет данных","Нет данных","Нет данных","Нет данных","Нет данных","Нет данных","Нет данных","Нет данных","Нет данных","Нет данных","Нет данных"]
[8,8,"Муравьев","Николай","Александрович","Нет данных",null,"Нет данных","Нет данных","Нет данных","Нет данных","Нет данных","Нет данных","Нет данных","Нет данных","Нет данных","Нет данных","Нет данных"]
[9,"Нет данных","Торопова","Клавдия","Дмитриевна","Нет данных",null,"Нет данных","Нет данных","Нет данных","Нет данных","Нет данных","Нет данных","Нет данных","Нет данных","Нет данных","Нет данных","Нет данных"]
[{"$f":"A16+1","v":10},"Нет данных","Маркелова","Алла","Анатольевна","Нет данных",null,"Нет данных","Нет данных","Нет данных","Нет данных","Нет данных","Нет данных","Нет данных","Нет данных","Нет данных","Нет данных","Нет данных"]
[11,"Нет данных","Бабыкина","Любовь","Николаевна","Нет данных",null,"Нет данных","Нет данных","Нет данных","Нет данных","Нет данных","Нет данных","Нет данных","Нет данных","Нет данных","Нет данных","Нет данных"]
[12,"Нет данных","Ермолаев","Денис","Владимирович","Нет данных",null,"Нет данных","Нет данных","Нет данных","Нет данных","Нет данных","Нет данных","Нет данных","Нет данных","Нет данных","Нет данных","Нет данных"]
[13,"Нет данных","Ермолаев","Владимир","Владимирович","Нет данных",null,"Нет данных","Нет данных","Нет данных","Нет данных","Нет данных","Нет данных","Нет данных","Нет данных","Нет данных","Нет данных","Нет данных"]
[14,"Нет данных","Ермолаев","Владимир","Владимирович","Нет данных",null,"Нет данных","Нет данных","Нет данных","Нет данных","Нет данных","Нет данных","Нет данных","Нет данных","Нет данных","Нет данных","Нет данных"]
[15,"Нет данных","Ермолаев","Владимир","Владимирович","Нет данных",null,"Нет данных","Нет данных","Нет данных","Нет данных","Нет данных","Нет данных","Нет данных","Нет данных","Нет данных","Нет данных","Нет данных"]
[16,"Нет данных","Кирилина","Любовь","Семеновна","Нет данных",null,"Нет данных","Нет данных","Нет данных","Нет данных","Нет данных","Нет данных","Нет данных","Нет данных","Нет данных","Нет данных","Нет данных"]
[17,"Нет данных","Назаров","Виктор","Филиппович","Нет данных",null,"Нет данных","Нет данных","Нет данных","Нет данных","Нет данных","Нет данных","Нет данных","Нет данных","Нет данных","Нет данных","Нет данных"]
[18,"Нет данных","Черепьянов","А.","С.","Нет данных",null,"Нет данных","Нет данных","Нет данных","Нет данных","Нет данных","Нет данных","Нет данных","Нет данных","Нет данных","Нет данных","Нет данных"]
[19,"Нет данных","Черепьянов","А.","С.","Нет данных",null,"Нет данных","Нет данных","Нет данных","Нет данных","Нет данных","Нет данных","Нет данных","Нет данных","Нет данных","Нет данных","Нет данных"]
[20,"Нет данных","Еремеева","Татьяна","Алексеевна","Нет данных",null,"Нет данных","Нет данных","Нет данных","Нет данных","Нет данных","Нет данных","Нет данных","Нет данных","Нет данных","Нет данных","Нет данных"]
[21,"Нет данных","Еремеева","Татьяна","Алексеевна","Нет данных",null,"Нет данных","Нет данных","Нет данных","Нет данных","Нет данных","Нет данных","Нет данных","Нет данных","Нет данных","Нет данных","Нет данных"]
[22,"Нет данных","Новоторова","Нина","Тимофеевна","Нет данных",null,"Нет данных","Нет данных","Нет данных","Нет данных","Нет данных","Нет данных","Нет данных","Нет данных","Нет данных","Нет данных","Нет данных"]
[23,"Нет данных","Шевень","Василий","Петрович","Нет данных",null,"Нет данных","Нет данных","Нет данных","Нет данных","Нет данных","Нет данных","Нет данных","Нет данных","Нет данных","Нет данных","Нет данных"]
[24,"Нет данных","Шевень","Василий","Петрович","Нет данных",null,"Нет данных","Нет данных","Нет данных","Нет данных","Нет данных","Нет данных","Нет данных","Нет данных","Нет данных","Нет данных","Нет данных"]
[25,"Нет данных","Шевень","Василий","Петрович","Нет данных",null,"Нет данных","Нет данных","Нет данных","Нет данных","Нет данных","Нет данных","Нет данных","Нет данных","Нет данных","Нет данных","Нет данных"]
[26,"Нет данных","Шевень","Василий","Петрович","Нет данных",null,"Нет данных","Нет данных","Нет данных","Нет данных","Нет данных","Нет данных","Нет данных","Нет данных","Нет данных","Нет данных","Нет данных"]
[27,"Нет данных","Шевень","Василий","Петрович","Нет данных",null,"Нет данных","Нет данных","Нет данных","Нет данных","Нет данных","Нет данных","Нет данных","Нет данных","Нет данных","Нет данных","Нет данных"]
[28,"Нет данных","Шевень","Василий","Петрович","Нет данных",null,"Нет данных","Нет данных","Нет данных","Нет данных","Нет данных","Нет данных","Нет данных","Нет данных","Нет данных","Нет данных","Нет данных"]
[29,"Нет данных","Шевень","Василий","Петрович","Нет данных",null,"Нет данных","Нет данных","Нет данных","Нет данных","Нет данных","Нет данных","Нет данных","Нет данных","Нет данных","Нет данных","Нет данных"]
[30,"Нет данных","Нет данных","Нет данных","Нет данных","Нет данных",null,"Нет данных","Нет данных","Нет данных","Нет данных","Нет данных","Нет данных","Нет данных","Нет данных","Нет данных","Нет данных","Нет данных"]
["31А","Нет данных","Добрынёв","Сергей","Алексеевич","Нет данных",null,"Нет данных","Нет данных","Нет данных","Нет данных","Нет данных","Нет данных","Нет данных","Нет данных","Нет данных","Нет данных","Нет данных"]
["31Б","Нет данных","Смирнов","Андрей","Нет данных","Нет данных",null,"Нет данных","Нет данных","Нет данных","Нет данных","Нет данных","Нет данных","Нет данных","Нет данных","Нет данных","Нет данных","Нет данных"]
["31В","Нет данных","Заславская","Екатерина","Геннадиевна","Нет данных",null,"Нет данных","Нет данных","Нет данных","Нет данных","Нет данных","Нет данных","Нет данных","Нет данных","Нет данных","Нет данных","Нет данных"]
["31Г","Нет данных","Смирнов","Андрей","Нет данных","Нет данных",null,"Нет данных","Нет данных","Нет данных","Нет данных","Нет данных","Нет данных","Нет данных","Нет данных","Нет данных","Нет данных","Нет данных"]
["31Д","Нет данных","Зайцев","Игорь","Адольфович","Нет данных",null,"Нет данных","Нет данных","Нет данных","Нет данных","Нет данных","Нет данных","Нет данных","Нет данных","Нет данных","Нет данных","Нет данных"]
["31Е",333,"Зайцев","Игорь","Адольфович","Нет данных",null,"Нет данных","Нет данных","Нет данных","Нет данных","Нет данных","Нет данных","Нет данных","Нет данных","Нет данных","Нет данных","Нет данных"]
["31Ж","пррр","Воронина","Нина","Алексеевна","Нет данных",null,"Нет данных","Нет данных","Нет данных","Нет данных","Нет данных","Нет данных","Нет данных","Нет данных","Нет данных","Нет данных","Нет данных"]
["31З","Нет данных","Великодный","Алексей","Валентинович","Нет данных",null,"Нет данных","Нет данных","Нет данных","Нет данных","Нет данных","Нет данных","Нет данных","Нет данных","Нет данных","Нет данных","Нет данных"]
["31И","Нет данных","Сычёв","Нет данных","Нет данных","Нет данных",null,"Нет данных","Нет данных","Нет данных","Нет данных","Нет данных","Нет данных","Нет данных","Нет данных","Нет данных","Нет данных","Нет данных"]
["31К","Нет данных","Зубцов","Вячеслав","Васильевич","Нет данных",null,"Нет данных","Нет данных","Нет данных","Нет данных","Нет данных","Нет данных","Нет данных","Нет данных","Нет данных","Нет данных","Нет данных"]
["31Л","Нет данных","Бронников","Геннадий","Николаевич","Нет данных",null,"Нет данных","Нет данных","Нет данных","Нет данных","Нет данных","Нет данных","Нет данных","Нет данных","Нет данных","Нет данных","Нет данных"]
["31М","Нет данных","Бахтиев","Артур","Шамильевич","Нет данных",null,"Нет данных","Нет данных","Нет данных","Нет данных","Нет данных","Нет данных","Нет данных","Нет данных","Нет данных","Нет данных","Нет данных"]
["31Н","Нет данных","Соломонов","Дмитрий","Геннадиевич","Нет данных",null,"Нет данных","Нет данных","Нет данных","Нет данных","Нет данных","Нет данных","Нет данных","Нет данных","Нет данных","Нет данных","Нет данных"]
["31О","Нет данных","Заславский","Александр","Маркович","Нет данных",null,"Нет данных","Нет данных","Нет данных","Нет данных","Нет данных","Нет данных","Нет данных","Нет данных","Нет данных","Нет данных","Нет данных"]
["32","Нет данных","Аммонова","Надежда","Ивановна","Нет данных",null,"Нет данных","Нет данных","Нет данных","Нет данных","Нет данных","Нет данных","Нет данных","Нет данных","Нет данных","Нет данных","Нет данных"]
[{"$f":"A52+1","v":33},"Нет данных","Алексеева","Виктория","Павловна","Нет данных",null,"Нет данных","Нет данных","Нет данных","Нет данных","Нет данных","Нет данных","Нет данных","Нет данных","Нет данных","Нет данных","Нет данных"]
[{"$f":"A53+1","v":34},"Нет данных","Алексеева","Виктория","Павловна","Нет данных",null,"Нет данных","Нет данных","Нет данных","Нет данных","Нет данных","Нет данных","Нет данных","Нет данных","Нет данных","Нет данных","Нет данных"]
[35,"Нет данных","Алексеева","Виктория","Павловна","Нет данных",null,"Нет данных","Нет данных","Нет данных","Нет данных","Нет данных","Нет данных","Нет данных","Нет данных","Нет данных","Нет данных","Нет данных"]
[36,"Нет данных","Сухарева","Нина","Николаевна","Нет данных",null,"Нет данных","Нет данных","Нет данных","Нет данных","Нет данных","Нет данных","Нет данных","Нет данных","Нет данных","Нет данных","Нет данных"]
[37,"Нет данных","Иванов","Михаил","Юрьевич","Нет данных",null,"Нет данных","Нет данных","Нет данных","Нет данных","Нет данных","Нет данных","Нет данных","Нет данных","Нет данных","Нет данных","Нет данных"]
[38,"Нет данных","Иванов","Михаил","Юрьевич","Нет данных",null,"Нет данных","Нет данных","Нет данных","Нет данных","Нет данных","Нет данных","Нет данных","Нет данных","Нет данных","Нет данных","Нет данных"]
[39,"Нет данных","Иванов","Михаил","Юрьевич","Нет данных",null,"Нет данных","Нет данных","Нет данных","Нет данных","Нет данных","Нет данных","Нет данных","Нет данных","Нет данных","Нет данных","Нет данных"]
[40,"Нет данных","Корнюшонкова","Муза","Николаевна","Нет данных",null,"Нет данных","Нет данных","Нет данных","Нет данных","Нет данных","Нет данных","Нет данных","Нет данных","Нет данных","Нет данных","Нет данных"]
[41,"Нет данных","Зайцева","Любовь","Николаевна","Нет данных",null,"Нет данных","Нет данных","Нет данных","Нет данных","Нет данных","Нет данных","Нет данных","Нет данных","Нет данных","Нет данных","Нет данных"]
[42,"Нет данных","Ермолаева","Валерия","Владимировна","Нет данных",null,"Нет данных","Нет данных","Нет данных","Нет данных","Нет данных","Нет данных","Нет данных","Нет данных","Нет данных","Нет данных","Нет данных"]
[43,"Нет данных","Ермолаева","Валерия","Владимировна","Нет данных",null,"Нет данных","Нет данных","Нет данных","Нет данных","Нет данных","Нет данных","Нет данных","Нет данных","Нет данных","Нет данных","Нет данных"]
[44,"Нет данных","Платонова","Нина","Ивановна","Нет данных",null,"Нет данных","Нет данных","Нет данных","Нет данных","Нет данных","Нет данных","Нет данных","Нет данных","Нет данных","Нет данных","Нет данных"]
[45,"Нет данных","Лыс","Эдита","Азадовна","Нет данных",null,"Нет данных","Нет данных","Нет данных","Нет данных","Нет данных","Нет данных","Нет данных","Нет данных","Нет данных","Нет данных","Нет данных"]
[46,"Нет данных","Рудой","Любовь","Сергеевна","Нет данных",null,"Нет данных","Нет данных","Нет данных","Нет данных","Нет данных","Нет данных","Нет данных","Нет данных","Нет данных","Нет данных","Нет данных"]
[47,"Нет данных","Митропольский","Андрей","Сергеевич","Нет данных",null,"Нет данных","Нет данных","Нет данных","Нет данных","Нет данных","Нет данных","Нет данных","Нет данных","Нет данных","Нет данных","Нет данных"]
[48,"Нет данных","Митропольский","Андрей","Сергеевич","Нет данных",null,"Нет данных","Нет данных","Нет данных","Нет данных","Нет данных","Нет данных","Нет данных","Нет данных","Нет данных","Нет данных","Нет данных"]
[49,"Нет данных","Митропольский","Андрей","Сергеевич","Нет данных",null,"Нет данных","Нет данных","Нет данных","Нет данных","Нет данных","Нет данных","Нет данных","Нет данных","Нет данных","Нет данных","Нет данных"]
[50,"Нет данных","Митропольский","Андрей","Сергеевич","Нет данных",null,"Нет данных","Нет данных","Нет данных","Нет данных","Нет данных","Нет данных","Нет данных","Нет данных","Нет данных","Нет данных","Нет данных"]
[51,"Нет данных","Великодный","Алексей","Валентинович","Нет данных",null,"Нет данных","Нет данных","Нет данных","Нет данных","Нет данных","Нет данных","Нет данных","Нет данных","Нет данных","Нет данных","Нет данных"]
[52,"Нет данных","Великодный","Алексей","Валентинович","Нет данных",null,"Нет данных","Нет данных","Нет данных","Нет данных","Нет данных","Нет данных","Нет данных","Нет данных","Нет данных","Нет данных","Нет данных"]
[53,"Нет данных","Угарова","Татьяна","Владимировна","Нет данных",null,"Нет данных","Нет данных","Нет данных","Нет данных","Нет данных","Нет данных","Нет данных","Нет данных","Нет данных","Нет данных","Нет данных"]
[54,"Нет данных","Угарова","Татьяна","Владимировна","Нет данных",null,"Нет данных","Нет данных","Нет данных","Нет данных","Нет данных","Нет данных","Нет данных","Нет данных","Нет данных","Нет данных","Нет данных"]
[55,"Нет данных","Зайцева","Ольга","Вадимовна","Нет данных",null,"Нет данных","Нет данных","Нет данных","Нет данных","Нет данных","Нет данных","Нет данных","Нет данных","Нет данных","Нет данных","Нет данных"]
[56,"Нет данных","Лошкарева","Елена","Борисовна","Нет данных",null,"Нет данных","Нет данных","Нет данных","Нет данных","Нет данных","Нет данных","Нет данных","Нет данных","Нет данных","Нет данных","Нет данных"]
[57,"Нет данных","Кудряшова","Галина","Александровна","Нет данных",null,"Нет данных","Нет данных","Нет данных","Нет данных","Нет данных","Нет данных","Нет данных","Нет данных","Нет данных","Нет данных","Нет данных"]
[58,"Нет данных","Марграф","Виктор","Федорович","Нет данных",null,"Нет данных","Нет данных","Нет данных","Нет данных","Нет данных","Нет данных","Нет данных","Нет данных","Нет данных","Нет данных","Нет данных"]
[59,"Нет данных","Марграф","Виктор","Федорович","Нет данных",null,"Нет данных","Нет данных","Нет данных","Нет данных","Нет данных","Нет данных","Нет данных","Нет данных","Нет данных","Нет данных","Нет данных"]
[60,"Нет данных","Охримук","Дмитрий","Геннадьевич","Нет данных",null,"Нет данных","Нет данных","Нет данных","Нет данных","Нет данных","Нет данных","Нет данных","Нет данных","Нет данных","Нет данных","Нет данных"]
[61,"Нет данных","Жанибекова","Виктория","Филипповна","Нет данных",null,"Нет данных","Нет данных","Нет данных","Нет данных","Нет данных","Нет данных","Нет данных","Нет данных","Нет данных","Нет данных","Нет данных"]
[62,"Нет данных","Жанибекова","Виктория","Филипповна","Нет данных",null,"Нет данных","Нет данных","Нет данных","Нет данных","Нет данных","Нет данных","Нет данных","Нет данных","Нет данных","Нет данных","Нет данных"]
[63,"Нет данных","Кузнецова","Светлана","Юрьевна","Нет данных",null,"Нет данных","Нет данных","Нет данных","Нет данных","Нет данных","Нет данных","Нет данных","Нет данных","Нет данных","Нет данных","Нет данных"]
[64,"Нет данных","Алсаев","Владимир","Максимович","Нет данных",null,"Нет данных","Нет данных","Нет данных","Нет данных","Нет данных","Нет данных","Нет данных","Нет данных","Нет данных","Нет данных","Нет данных"]
["64А","Нет данных","Новиков","Владимир","Прокопьевич","Нет данных",null,"Нет данных","Нет данных","Нет данных","Нет данных","Нет данных","Нет данных","Нет данных","Нет данных","Нет данных","Нет данных","Нет данных"]
["65","Нет данных","Шамрай","В.","В.","Нет данных",null,"Нет данных","Нет данных","Нет данных","Нет данных","Нет данных","Нет данных","Нет данных","Нет данных","Нет данных","Нет данных","Нет данных"]
[{"$f":"A86+1","v":66},"Нет данных","Дербенева","Раиса","Максимовна","Нет данных",null,"Нет данных","Нет данных","Нет данных","Нет данных","Нет данных","Нет данных","Нет данных","Нет данных","Нет данных","Нет данных","Нет данных"]
[{"$f":"A87+1","v":67},"Нет данных","Кукушкин","Нет данных","Нет данных","Нет данных",null,"Нет данных","Нет данных","Нет данных","Нет данных","Нет данных","Нет данных","Нет данных","Нет данных","Нет данных","Нет данных","Нет данных"]
[68,"Нет данных","Новиков","Владимир","Прокопьевич","Нет данных",null,"Нет данных","Нет данных","Нет данных","Нет данных","Нет данных","Нет данных","Нет данных","Нет данных","Нет данных","Нет данных","Нет данных"]
[69,"Нет данных","Чернова","Марина","Владимировна","Нет данных",null,"Нет данных","Нет данных","Нет данных","Нет данных","Нет данных","Нет данных","Нет данных","Нет данных","Нет данных","Нет данных","Нет данных"]
[70,"Нет данных","Чернова","Марина","Владимировна","Нет данных",null,"Нет данных","Нет данных","Нет данных","Нет данных","Нет данных","Нет данных","Нет данных","Нет данных","Нет данных","Нет данных","Нет данных"]
[71,"Нет данных","Чернова","Марина","Владимировна","Нет данных",null,"Нет данных","Нет данных","Нет данных","Нет данных","Нет данных","Нет данных","Нет данных","Нет данных","Нет данных","Нет данных","Нет данных"]
[72,"Нет данных","Поляков","Вячеслав","Георгиевич","Нет данных",null,"Нет данных","Нет данных","Нет данных","Нет данных","Нет данных","Нет данных","Нет данных","Нет данных","Нет данных","Нет данных","Нет данных"]
[73,"Нет данных","Егоров","Дмитрий","Михайлович","Нет данных",null,"Нет данных","Нет данных","Нет данных","Нет данных","Нет данных","Нет данных","Нет данных","Нет данных","Нет данных","Нет данных","Нет данных"]
[74,"Нет данных","Багрова","Тамара","Ивановна","Нет данных",null,"Нет данных","Нет данных","Нет данных","Нет данных","Нет данных","Нет данных","Нет данных","Нет данных","Нет данных","Нет данных","Нет данных"]
[75,"Нет данных","Зиновьев","Иван","Игоревич","Нет данных",null,"Нет данных","Нет данных","Нет данных","Нет данных","Нет данных","Нет данных","Нет данных","Нет данных","Нет данных","Нет данных","Нет данных"]
[76,"Нет данных","Налимовв","Л.","С.","Нет данных",null,"Нет данных","Нет данных","Нет данных","Нет данных","Нет данных","Нет данных","Нет данных","Нет данных","Нет данных","Нет данных","Нет данных"]
[77,"Нет данных","Нечепуренко","Валентин","Николаевич","Нет данных",null,"Нет данных","Нет данных","Нет данных","Нет данных","Нет данных","Нет данных","Нет данных","Нет данных","Нет данных","Нет данных","Нет данных"]
[78,"Нет данных","Нечепуренко","Валентин","Николаевич","Нет данных",null,"Нет данных","Нет данных","Нет данных","Нет данных","Нет данных","Нет данных","Нет данных","Нет данных","Нет данных","Нет данных","Нет данных"]
[79,"Нет данных","Каюшин","Олег","Игоревич","Нет данных",null,"Нет данных","Нет данных","Нет данных","Нет данных","Нет данных","Нет данных","Нет данных","Нет данных","Нет данных","Нет данных","Нет данных"]
[80,"Нет данных","Савиных","Нелли","Ильинична","Нет данных",null,"Нет данных","Нет данных","Нет данных","Нет данных","Нет данных","Нет данных","Нет данных","Нет данных","Нет данных","Нет данных","Нет данных"]
[81,"Нет данных","Тимошенкова","Мария","Егоровна","Нет данных",null,"Нет данных","Нет данных","Нет данных","Нет данных","Нет данных","Нет данных","Нет данных","Нет данных","Нет данных","Нет данных","Нет данных"]
[82,"Нет данных","Кузьменко","Виталий","Александрович","Нет данных",null,"Нет данных","Нет данных","Нет данных","Нет данных","Нет данных","Нет данных","Нет данных","Нет данных","Нет данных","Нет данных","Нет данных"]
[83,"Нет данных","Байроктарь","Георгий","Иванович","Нет данных",null,"Нет данных","Нет данных","Нет данных","Нет данных","Нет данных","Нет данных","Нет данных","Нет данных","Нет данных","Нет данных","Нет данных"]
[84,"Нет данных","Симонович","Любовь","Ивановна","Нет данных",null,"Нет данных","Нет данных","Нет данных","Нет данных","Нет данных","Нет данных","Нет данных","Нет данных","Нет данных","Нет данных","Нет данных"]
[85,"Нет данных","Махновская","Светлана","Павловна","Нет данных",null,"Нет данных","Нет данных","Нет данных","Нет данных","Нет данных","Нет данных","Нет данных","Нет данных","Нет данных","Нет данных","Нет данных"]
[86,"Нет данных","Иванов","Михаил","Юрьевич","Нет данных",null,"Нет данных","Нет данных","Нет данных","Нет данных","Нет данных","Нет данных","Нет данных","Нет данных","Нет данных","Нет данных","Нет данных"]
[87,"Нет данных","Иванов","Михаил","Юрьевич","Нет данных",null,"Нет данных","Нет данных","Нет данных","Нет данных","Нет данных","Нет данных","Нет данных","Нет данных","Нет данных","Нет данных","Нет данных"]
[88,"Нет данных","Паращук","Юрий","Дмитриевич","Нет данных",null,"Нет данных","Нет данных","Нет данных","Нет данных","Нет данных","Нет данных","Нет данных","Нет данных","Нет данных","Нет данных","Нет данных"]
[89,"Нет данных","Петрова","Анастасия","Сергеевна","Нет данных",null,"Нет данных","Нет данных","Нет данных","Нет данных","Нет данных","Нет данных","Нет данных","Нет данных","Нет данных","Нет данных","Нет данных"]
[90,"Нет данных","Петрова","Анастасия","Сергеевна","Нет данных",null,"Нет данных","Нет данных","Нет данных","Нет данных","Нет данных","Нет данных","Нет данных","Нет данных","Нет данных","Нет данных","Нет данных"]
[91,"Нет данных","Кузьмичева","Вера","Панкратьевна","Нет данных",null,"Нет данных","Нет данных","Нет данных","Нет данных","Нет данных","Нет данных","Нет данных","Нет данных","Нет данных","Нет данных","Нет данных"]
[92,"Нет данных","Степанова","Надежда","Васильевна","Нет данных",null,"Нет данных","Нет данных","Нет данных","Нет данных","Нет данных","Нет данных","Нет данных","Нет данных","Нет данных","Нет данных","Нет данных"]
[93,"Нет данных","Васильянова","Клавдия","Федоровна","Нет данных",null,"Нет данных","Нет данных","Нет данных","Нет данных","Нет данных","Нет данных","Нет данных","Нет данных","Нет данных","Нет данных","Нет данных"]
[94,"Нет данных","Зиновьев","Иван","Игоревич","Нет данных",null,"Нет данных","Нет данных","Нет данных","Нет данных","Нет данных","Нет данных","Нет данных","Нет данных","Нет данных","Нет данных","Нет данных"]
[95,"Нет данных","Зиновьев","Иван","Игоревич","Нет данных",null,"Нет данных","Нет данных","Нет данных","Нет данных","Нет данных","Нет данных","Нет данных","Нет данных","Нет данных","Нет данных","Нет данных"]
[96,"Нет данных","Жук","Дарья","Владимировна","Нет данных",null,"Нет данных","Нет данных","Нет данных","Нет данных","Нет данных","Нет данных","Нет данных","Нет данных","Нет данных","Нет данных","Нет данных"]
[97,"Нет данных","Жук","Дарья","Владимировна","Нет данных",null,"Нет данных","Нет данных","Нет данных","Нет данных","Нет данных","Нет данных","Нет данных","Нет данных","Нет данных","Нет данных","Нет данных"]
[98,"Нет данных","Прилуцкий","Михаил","Сергеевич","Нет данных",null,"Нет данных","Нет данных","Нет данных","Нет данных","Нет данных","Нет данных","Нет данных","Нет данных","Нет данных","Нет данных","Нет данных"]
[99,"Нет данных","Прилуцкий","Михаил","Сергеевич","Нет данных",null,"Нет данных","Нет данных","Нет данных","Нет данных","Нет данных","Нет данных","Нет данных","Нет данных","Нет данных","Нет данных","Нет данных"]
[100,"Нет данных","Казакова","Светлана","Анатольевна","Нет данных",null,"Нет данных","Нет данных","Нет данных","Нет данных","Нет данных","Нет данных","Нет данных","Нет данных","Нет данных","Нет данных","Нет данных"]
[101,"Нет данных","Казакова","Любовь","Валериановна","Нет данных",null,"Нет данных","Нет данных","Нет данных","Нет данных","Нет данных","Нет данных","Нет данных","Нет данных","Нет данных","Нет данных","Нет данных"]
[102,"Нет данных","Могильницкая","Валентина","Алексеевна","Нет данных",null,"Нет данных","Нет данных","Нет данных","Нет данных","Нет данных","Нет данных","Нет данных","Нет данных","Нет данных","Нет данных","Нет данных"]
[103,"Нет данных","Багров","Павел","Сергеевич","Нет данных",null,"Нет данных","Нет данных","Нет данных","Нет данных","Нет данных","Нет данных","Нет данных","Нет данных","Нет данных","Нет данных","Нет данных"]
[104,"Нет данных","Безуглова","Людмила","Евгеньевна","Нет данных",null,"Нет данных","Нет данных","Нет данных","Нет данных","Нет данных","Нет данных","Нет данных","Нет данных","Нет данных","Нет данных","Нет данных"]
[105,"Нет данных","Тютюнин","Александр","Андреевич","Нет данных",null,"Нет данных","Нет данных","Нет данных","Нет данных","Нет данных","Нет данных","Нет данных","Нет данных","Нет данных","Нет данных","Нет данных"]
[106,"Нет данных","Тютюнин","Александр","Андреевич","Нет данных",null,"Нет данных","Нет данных","Нет данных","Нет данных","Нет данных","Нет данных","Нет данных","Нет данных","Нет данных","Нет данных","Нет данных"]
[107,"Нет данных","Тютюнин","Александр","Андреевич","Нет данных",null,"Нет данных","Нет данных","Нет данных","Нет данных","Нет данных","Нет данных","Нет данных","Нет данных","Нет данных","Нет данных","Нет данных"]
[108,"Нет данных","Тютюнин","Александр","Андреевич","Нет данных",null,"Нет данных","Нет данных","Нет данных","Нет данных","Нет данных","Нет данных","Нет данных","Нет данных","Нет данных","Нет данных","Нет данных"]
[109,"Нет данных","Тютюнин","Александр","Андреевич","Нет данных",null,"Нет данных","Нет данных","Нет данных","Нет данных","Нет данных","Нет данных","Нет данных","Нет данных","Нет данных","Нет данных","Нет данных"]
[110,"Нет данных","Тютюнин","Александр","Андреевич","Нет данных",null,"Нет данных","Нет данных","Нет данных","Нет данных","Нет данных","Нет данных","Нет данных","Нет данных","Нет данных","Нет данных","Нет данных"]
[111,"Нет данных","Заславская","Екатерина","Геннадиевна","Нет данных",null,"Нет данных","Нет данных","Нет данных","Нет данных","Нет данных","Нет данных","Нет данных","Нет данных","Нет данных","Нет данных","Нет данных"]
[112,"Нет данных","Махновский","Вадим","Маркович","Нет данных",null,"Нет данных","Нет данных","Нет данных","Нет данных","Нет данных","Нет данных","Нет данных","Нет данных","Нет данных","Нет данных","Нет данных"]
[113,"Нет данных","Разбегина","Анна","Валентиновна","Нет данных",null,"Нет данных","Нет данных","Нет данных","Нет данных","Нет данных","Нет данных","Нет данных","Нет данных","Нет данных","Нет данных","Нет данных"]
[114,"Нет данных","Разбегина","Анна","Валентиновна","Нет данных",null,"Нет данных","Нет данных","Нет данных","Нет данных","Нет данных","Нет данных","Нет данных","Нет данных","Нет данных","Нет данных","Нет данных"]
[115,"Нет данных","Симонович","Нина","Васильевна","Нет данных",null,"Нет данных","Нет данных","Нет данных","Нет данных","Нет данных","Нет данных","Нет данных","Нет данных","Нет данных","Нет данных","Нет данных"]
[116,"Нет данных","Ганина","Ирина","Кронидовна","Нет данных",null,"Нет данных","Нет данных","Нет данных","Нет данных","Нет данных","Нет данных","Нет данных","Нет данных","Нет данных","Нет данных","Нет данных"]
[117,"Нет данных","Индриксон","Ян","Леонидович","Нет данных",null,"Нет данных","Нет данных","Нет данных","Нет данных","Нет данных","Нет данных","Нет данных","Нет данных","Нет данных","Нет данных","Нет данных"]
[118,"Нет данных","Муращенко","Валерий","Николаевич","Нет данных",null,"Нет данных","Нет данных","Нет данных","Нет данных","Нет данных","Нет данных","Нет данных","Нет данных","Нет данных","Нет данных","Нет данных"]
[119,"Нет данных","Солдатенков","Дмитрий","Евгеньевич","Нет данных",null,"Нет данных","Нет данных","Нет данных","Нет данных","Нет данных","Нет данных","Нет данных","Нет данных","Нет данных","Нет данных","Нет данных"]
[120,"Нет данных","Шапошников","Дмитрий","Андреевич","Нет данных",null,"Нет данных","Нет данных","Нет данных","Нет данных","Нет данных","Нет данных","Нет данных","Нет данных","Нет данных","Нет данных","Нет данных"]
["?","Нет данных","Шапошникова","Галина","Анатольевна","Нет данных",null,"Нет данных","Нет данных","Нет данных","Нет данных","Нет данных","Нет данных","Нет данных","Нет данных","Нет данных","Нет данных","Нет данных"]
[121,"Нет данных","Хренков","Федор","Николаевич","Нет данных",null,"Нет данных","Нет данных","Нет данных","Нет данных","Нет данных","Нет данных","Нет данных","Нет данных","Нет данных","Нет данных","Нет данных"]
[{"$f":"A143+1","v":122},"Нет данных","Скребцова","Олеся","Александровна","Нет данных",null,"Нет данных","Нет данных","Нет данных","Нет данных","Нет данных","Нет данных","Нет данных","Нет данных","Нет данных","Нет данных","Нет данных"]
[{"$f":"A144+1","v":123},"Нет данных","Михеева","Людмила","Ивановна","Нет данных",null,"Нет данных","Нет данных","Нет данных","Нет данных","Нет данных","Нет данных","Нет данных","Нет данных","Нет данных","Нет данных","Нет данных"]
[124,"Нет данных","Клименко","Алексей","Андреевич","Нет данных",null,"Нет данных","Нет данных","Нет данных","Нет данных","Нет данных","Нет данных","Нет данных","Нет данных","Нет данных","Нет данных","Нет данных"]
[125,"Нет данных","Уткина","Татьяна","Анатольевна","Нет данных",null,"Нет данных","Нет данных","Нет данных","Нет данных","Нет данных","Нет данных","Нет данных","Нет данных","Нет данных","Нет данных","Нет данных"]
[126,"Нет данных","Разумовский","Борис","Анатольевич","Нет данных",null,"Нет данных","Нет данных","Нет данных","Нет данных","Нет данных","Нет данных","Нет данных","Нет данных","Нет данных","Нет данных","Нет данных"]
[127,"Нет данных","Варфоломеев","Антон","Николаевич","Нет данных",null,"Нет данных","Нет данных","Нет данных","Нет данных","Нет данных","Нет данных","Нет данных","Нет данных","Нет данных","Нет данных","Нет данных"]
[128,"Нет данных","Павловский","Дмитрий","Борисович","Нет данных",null,"Нет данных","Нет данных","Нет данных","Нет данных","Нет данных","Нет данных","Нет данных","Нет данных","Нет данных","Нет данных","Нет данных"]
[129,"Нет данных","Хромов","Сергей","Антониноич","Нет данных",null,"Нет данных","Нет данных","Нет данных","Нет данных","Нет данных","Нет данных","Нет данных","Нет данных","Нет данных","Нет данных","Нет данных"]
[130,"Нет данных","Ерощенко","Сергей","Викторович","Нет данных",null,"Нет данных","Нет данных","Нет данных","Нет данных","Нет данных","Нет данных","Нет данных","Нет данных","Нет данных","Нет данных","Нет данных"]
[131,"Нет данных","Криушова","Раиса","Петровна","Нет данных",null,"Нет данных","Нет данных","Нет данных","Нет данных","Нет данных","Нет данных","Нет данных","Нет данных","Нет данных","Нет данных","Нет данных"]
[132,"Нет данных","Калинников","Юрий","Константинович","Нет данных",null,"Нет данных","Нет данных","Нет данных","Нет данных","Нет данных","Нет данных","Нет данных","Нет данных","Нет данных","Нет данных","Нет данных"]
[133,"Нет данных","Самолетов","Евгений","Иванович","Нет данных",null,"Нет данных","Нет данных","Нет данных","Нет данных","Нет данных","Нет данных","Нет данных","Нет данных","Нет данных","Нет данных","Нет данных"]
[134,"Нет данных","Пелевина","Лариса","Андреевна","Нет данных",null,"Нет данных","Нет данных","Нет данных","Нет данных","Нет данных","Нет данных","Нет данных","Нет данных","Нет данных","Нет данных","Нет данных"]
[135,"Нет данных","Пелевина","Лариса","Андреевна","Нет данных",null,"Нет данных","Нет данных","Нет данных","Нет данных","Нет данных","Нет данных","Нет данных","Нет данных","Нет данных","Нет данных","Нет данных"]
[136,"Нет данных","Фатюшин","Алексей","Михайлович","Нет данных",null,"Нет данных","Нет данных","Нет данных","Нет данных","Нет данных","Нет данных","Нет данных","Нет данных","Нет данных","Нет данных","Нет данных"]
[137,"Нет данных","Жиганов","Павел","Анатольевич","Нет данных",null,"Нет данных","Нет данных","Нет данных","Нет данных","Нет данных","Нет данных","Нет данных","Нет данных","Нет данных","Нет данных","Нет данных"]
[138,"Нет данных","Баклыков","Александр","Иванович","Нет данных",null,"Нет данных","Нет данных","Нет данных","Нет данных","Нет данных","Нет данных","Нет данных","Нет данных","Нет данных","Нет данных","Нет данных"]
[139,"Нет данных","Спирин","Денис","Александрович","Нет данных",null,"Нет данных","Нет данных","Нет данных","Нет данных","Нет данных","Нет данных","Нет данных","Нет данных","Нет данных","Нет данных","Нет данных"]
[140,"Нет данных","Коржов","Вячеслав","Иванович","Нет данных",null,"Нет данных","Нет данных","Нет данных","Нет данных","Нет данных","Нет данных","Нет данных","Нет данных","Нет данных","Нет данных","Нет данных"]
[141,"Нет данных","Сычев","Юрий","Николаевич","Нет данных",null,"Нет данных","Нет данных","Нет данных","Нет данных","Нет данных","Нет данных","Нет данных","Нет данных","Нет данных","Нет данных","Нет данных"]
[142,"Нет данных","Микляева","Ирина","Валерьевна","Нет данных",null,"Нет данных","Нет данных","Нет данных","Нет данных","Нет данных","Нет данных","Нет данных","Нет данных","Нет данных","Нет данных","Нет данных"]
[143,"Нет данных","Калугин","Алексей","Владимирович","Нет данных",null,"Нет данных","Нет данных","Нет данных","Нет данных","Нет данных","Нет данных","Нет данных","Нет данных","Нет данных","Нет данных","Нет данных"]
[144,"Нет данных","Пучков","Владимир","Викторович","Нет данных",null,"Нет данных","Нет данных","Нет данных","Нет данных","Нет данных","Нет данных","Нет данных","Нет данных","Нет данных","Нет данных","Нет данных"]
[145,"Нет данных","Пучков","Владимир","Викторович","Нет данных",null,"Нет данных","Нет данных","Нет данных","Нет данных","Нет данных","Нет данных","Нет данных","Нет данных","Нет данных","Нет данных","Нет данных"]
[146,"Нет данных","Смирнова","Екатерина","Евгеньевна","Нет данных",null,"Нет данных","Нет данных","Нет данных","Нет данных","Нет данных","Нет данных","Нет данных","Нет данных","Нет данных","Нет данных","Нет данных"]
[147,"Нет данных","Гаврилова","Мария","Анатольевна","Нет данных",null,"Нет данных","Нет данных","Нет данных","Нет данных","Нет данных","Нет данных","Нет данных","Нет данных","Нет данных","Нет данных","Нет данных"]
[148,"Нет данных","Бузлина","Антонина","Анатольевна","Нет данных",null,"Нет данных","Нет данных","Нет данных","Нет данных","Нет данных","Нет данных","Нет данных","Нет данных","Нет данных","Нет данных","Нет данных"]
[149,"Нет данных","Орехов","Александр","Михайлович","Нет данных",null,"Нет данных","Нет данных","Нет данных","Нет данных","Нет данных","Нет данных","Нет данных","Нет данных","Нет данных","Нет данных","Нет данных"]
[150,"Нет данных","Фатюшин","Алексей","Михайлович","Нет данных",null,"Нет данных","Нет данных","Нет данных","Нет данных","Нет данных","Нет данных","Нет данных","Нет данных","Нет данных","Нет данных","Нет данных"]
[151,"Нет данных","Придаткина","Галина","Петровна","Нет данных",null,"Нет данных","Нет данных","Нет данных","Нет данных","Нет данных","Нет данных","Нет данных","Нет данных","Нет данных","Нет данных","Нет данных"]
[152,"Нет данных","Колотвина","Галина","Федоровна","Нет данных",null,"Нет данных","Нет данных","Нет данных","Нет данных","Нет данных","Нет данных","Нет данных","Нет данных","Нет данных","Нет данных","Нет данных"]
[153,"Нет данных","Васильев","Евгений","Иванович","Нет данных",null,"Нет данных","Нет данных","Нет данных","Нет данных","Нет данных","Нет данных","Нет данных","Нет данных","Нет данных","Нет данных","Нет данных"]
[154,"Нет данных","Степаненко","Любовь","Николаевна","Нет данных",null,"Нет данных","Нет данных","Нет данных","Нет данных","Нет данных","Нет данных","Нет данных","Нет данных","Нет данных","Нет данных","Нет данных"]
[155,"Нет данных","Калинин","Сергей","В","Нет данных",null,"Нет данных","Нет данных","Нет данных","Нет данных","Нет данных","Нет данных","Нет данных","Нет данных","Нет данных","Нет данных","Нет данных"]
[156,"Нет данных","Микляева","Ирина","Валерьевна","Нет данных",null,"Нет данных","Нет данных","Нет данных","Нет данных","Нет данных","Нет данных","Нет данных","Нет данных","Нет данных","Нет данных","Нет данных"]
[157,"Нет данных","Калинина","Евгения","Эдуардовна","Нет данных",null,"Нет данных","Нет данных","Нет данных","Нет данных","Нет данных","Нет данных","Нет данных","Нет данных","Нет данных","Нет данных","Нет данных"]
[158,"Нет данных","Куликова","Ирина","Владимировна","Нет данных",null,"Нет данных","Нет данных","Нет данных","Нет данных","Нет данных","Нет данных","Нет данных","Нет данных","Нет данных","Нет данных","Нет данных"]
[159,"Нет данных","Нечаева","Галина","Марковна","Нет данных",null,"Нет данных","Нет данных","Нет данных","Нет данных","Нет данных","Нет данных","Нет данных","Нет данных","Нет данных","Нет данных","Нет данных"]
[160,"Нет данных","Семов","Александр","Сергеевич","Нет данных",null,"Нет данных","Нет данных","Нет данных","Нет данных","Нет данных","Нет данных","Нет данных","Нет данных","Нет данных","Нет данных","Нет данных"]
[161,"Нет данных","Кузнецова","Ирина","Ивановна","Нет данных",null,"Нет данных","Нет данных","Нет данных","Нет данных","Нет данных","Нет данных","Нет данных","Нет данных","Нет данных","Нет данных","Нет данных"]
[162,"Нет данных","Косов","Александр","Александрович","Нет данных",null,"Нет данных","Нет данных","Нет данных","Нет данных","Нет данных","Нет данных","Нет данных","Нет данных","Нет данных","Нет данных","Нет данных"]
[163,"Нет данных","Ивченко","Александр","Рудольфович","Нет данных",null,"Нет данных","Нет данных","Нет данных","Нет данных","Нет данных","Нет данных","Нет данных","Нет данных","Нет данных","Нет данных","Нет данных"]
[164,"Нет данных","Глинская","Елена","Андреевна","Нет данных",null,"Нет данных","Нет данных","Нет данных","Нет данных","Нет данных","Нет данных","Нет данных","Нет данных","Нет данных","Нет данных","Нет данных"]
[165,"Нет данных","Медведь","Элеонора","Ильинична","Нет данных",null,"Нет данных","Нет данных","Нет данных","Нет данных","Нет данных","Нет данных","Нет данных","Нет данных","Нет данных","Нет данных","Нет данных"]
[166,"Нет данных","Попова","Елена","Васильевна","Нет данных",null,"Нет данных","Нет данных","Нет данных","Нет данных","Нет данных","Нет данных","Нет данных","Нет данных","Нет данных","Нет данных","Нет данных"]
[167,"Нет данных","Костомаров","Виктор","Иванович","Нет данных",null,"Нет данных","Нет данных","Нет данных","Нет данных","Нет данных","Нет данных","Нет данных","Нет данных","Нет данных","Нет данных","Нет данных"]
["167А","Нет данных","Карганян","Ирина","Николаевна","Нет данных",null,"Нет данных","Нет данных","Нет данных","Нет данных","Нет данных","Нет данных","Нет данных","Нет данных","Нет данных","Нет данных","Нет данных"]
["168","Нет данных","Соловьева","Нина","Иосифовна","Нет данных",null,"Нет данных","Нет данных","Нет данных","Нет данных","Нет данных","Нет данных","Нет данных","Нет данных","Нет данных","Нет данных","Нет данных"]
[{"$f":"A191+1","v":169},"Нет данных","Пучкова","Ольга","Викторовна","Нет данных",null,"Нет данных","Нет данных","Нет данных","Нет данных","Нет данных","Нет данных","Нет данных","Нет данных","Нет данных","Нет данных","Нет данных"]
[{"$f":"A192+1","v":170},"Нет данных","Дорошенков","Георгий","Васильевич","Нет данных",null,"Нет данных","Нет данных","Нет данных","Нет данных","Нет данных","Нет данных","Нет данных","Нет данных","Нет данных","Нет данных","Нет данных"]
[171,"Нет данных","Саулко","Михаил","Иванович","Нет данных",null,"Нет данных","Нет данных","Нет данных","Нет данных","Нет данных","Нет данных","Нет данных","Нет данных","Нет данных","Нет данных","Нет данных"]
[172,"Нет данных","Шевченко","Татьяна","Васильевна","Нет данных",null,"Нет данных","Нет данных","Нет данных","Нет данных","Нет данных","Нет данных","Нет данных","Нет данных","Нет данных","Нет данных","Нет данных"]
[173,"Нет данных","Дубровин","Андрей","Леонидович","Нет данных",null,"Нет данных","Нет данных","Нет данных","Нет данных","Нет данных","Нет данных","Нет данных","Нет данных","Нет данных","Нет данных","Нет данных"]
[174,"Нет данных","Нет данных","Нет данных","Нет данных","Нет данных",null,"Нет данных","Нет данных","Нет данных","Нет данных","Нет данных","Нет данных","Нет данных","Нет данных","Нет данных","Нет данных","Нет данных"]
[175,"Нет данных","Рожков","Борис","Игоревич","Нет данных",null,"Нет данных","Нет данных","Нет данных","Нет данных","Нет данных","Нет данных","Нет данных","Нет данных","Нет данных","Нет данных","Нет данных"]
[176,"Нет данных","Волкова","Ирина","Сергеевна","Нет данных",null,"Нет данных","Нет данных","Нет данных","Нет данных","Нет данных","Нет данных","Нет данных","Нет данных","Нет данных","Нет данных","Нет данных"]
[177,"Нет данных","Глушков","Сергей","Васильевич","Нет данных",null,"Нет данных","Нет данных","Нет данных","Нет данных","Нет данных","Нет данных","Нет данных","Нет данных","Нет данных","Нет данных","Нет данных"]
[178,"Нет данных","Медведь","Элеонора","Ильинична(","Нет данных",null,"Нет данных","Нет данных","Нет данных","Нет данных","Нет данных","Нет данных","Нет данных","Нет данных","Нет данных","Нет данных","Нет данных"]
[179,"Нет данных","Головкина","Светлана","Павловна","Нет данных",null,"Нет данных","Нет данных","Нет данных","Нет данных","Нет данных","Нет данных","Нет данных","Нет данных","Нет данных","Нет данных","Нет данных"]
[180,"Нет данных","Зотов","Александр","Альбертович","Нет данных",null,"Нет данных","Нет данных","Нет данных","Нет данных","Нет данных","Нет данных","Нет данных","Нет данных","Нет данных","Нет данных","Нет данных"]
[181,"Нет данных","Козырева","Татьяна","Никоноровна","Нет данных",null,"Нет данных","Нет данных","Нет данных","Нет данных","Нет данных","Нет данных","Нет данных","Нет данных","Нет данных","Нет данных","Нет данных"]
[182,"Нет данных","Романычева","Ирина","Валерьевна","Нет данных",null,"Нет данных","Нет данных","Нет данных","Нет данных","Нет данных","Нет данных","Нет данных","Нет данных","Нет данных","Нет данных","Нет данных"]
[183,"Нет данных","Парамошина","Алла","Васильевна","Нет данных",null,"Нет данных","Нет данных","Нет данных","Нет данных","Нет данных","Нет данных","Нет данных","Нет данных","Нет данных","Нет данных","Нет данных"]
[184,"Нет данных","Парамошина","Алла","Васильевна","Нет данных",null,"Нет данных","Нет данных","Нет данных","Нет данных","Нет данных","Нет данных","Нет данных","Нет данных","Нет данных","Нет данных","Нет данных"]
[185,"Нет данных","Бибичев","Евгений","Константинович","Нет данных",null,"Нет данных","Нет данных","Нет данных","Нет данных","Нет данных","Нет данных","Нет данных","Нет данных","Нет данных","Нет данных","Нет данных"]
[186,"Нет данных","Шевченко","Татьяна","Васильевна","Нет данных",null,"Нет данных","Нет данных","Нет данных","Нет данных","Нет данных","Нет данных","Нет данных","Нет данных","Нет данных","Нет данных","Нет данных"]
[187,"Нет данных","Тетерник","Наталья","Васильевна","Нет данных",null,"Нет данных","Нет данных","Нет данных","Нет данных","Нет данных","Нет данных","Нет данных","Нет данных","Нет данных","Нет данных","Нет данных"]
[188,"Нет данных","Трифонова","Любовь","Геннадиевна","Нет данных",null,"Нет данных","Нет данных","Нет данных","Нет данных","Нет данных","Нет данных","Нет данных","Нет данных","Нет данных","Нет данных","Нет данных"]
[189,"Нет данных","Гагарина","Людмила","Николаевна","Нет данных",null,"Нет данных","Нет данных","Нет данных","Нет данных","Нет данных","Нет данных","Нет данных","Нет данных","Нет данных","Нет данных","Нет данных"]
[190,"Нет данных","Пашинская","Татьяна","Валентиновна","Нет данных",null,"Нет данных","Нет данных","Нет данных","Нет данных","Нет данных","Нет данных","Нет данных","Нет данных","Нет данных","Нет данных","Нет данных"]
[191,"Нет данных","Михайлова","Тамара","Павловна","Нет данных",null,"Нет данных","Нет данных","Нет данных","Нет данных","Нет данных","Нет данных","Нет данных","Нет данных","Нет данных","Нет данных","Нет данных"]
[192,"Нет данных","Жданова","Алефтина","Кехвановна","Нет данных",null,"Нет данных","Нет данных","Нет данных","Нет данных","Нет данных","Нет данных","Нет данных","Нет данных","Нет данных","Нет данных","Нет данных"]
[193,"Нет данных","Шкарбанов","Сергей","Николаевич","Нет данных",null,"Нет данных","Нет данных","Нет данных","Нет данных","Нет данных","Нет данных","Нет данных","Нет данных","Нет данных","Нет данных","Нет данных"]
[194,"Нет данных","Бочаров","Владимир","Алексеевич","Нет данных",null,"Нет данных","Нет данных","Нет данных","Нет данных","Нет данных","Нет данных","Нет данных","Нет данных","Нет данных","Нет данных","Нет данных"]
[195,"Нет данных","Щавелева","Светлана","Васильевна","Нет данных",null,"Нет данных","Нет данных","Нет данных","Нет данных","Нет данных","Нет данных","Нет данных","Нет данных","Нет данных","Нет данных","Нет данных"]
[196,"Нет данных","Дмитриев","Виктор","Алексеевич","Нет данных",null,"Нет данных","Нет данных","Нет данных","Нет данных","Нет данных","Нет данных","Нет данных","Нет данных","Нет данных","Нет данных","Нет данных"]
[197,"Нет данных","Лисакевич","С.","А.","Нет данных",null,"Нет данных","Нет данных","Нет данных","Нет данных","Нет данных","Нет данных","Нет данных","Нет данных","Нет данных","Нет данных","Нет данных"]
[198,"Нет данных","Белякова","Елена","Анатольевна","Нет данных",null,"Нет данных","Нет данных","Нет данных","Нет данных","Нет данных","Нет данных","Нет данных","Нет данных","Нет данных","Нет данных","Нет данных"]
[199,"Нет данных","Петушков","Никита","Викторович","Нет данных",null,"Нет данных","Нет данных","Нет данных","Нет данных","Нет данных","Нет данных","Нет данных","Нет данных","Нет данных","Нет данных","Нет данных"]
["  ---","Нет данных","Петушкова","Анна","Викторовна","Нет данных",null,"Нет данных","Нет данных","Нет данных","Нет данных","Нет данных","Нет данных","Нет данных","Нет данных","Нет данных","Нет данных","Нет данных"]
[200,"Нет данных","Кабанов","В.","Л","Нет данных",null,"Нет данных","Нет данных","Нет данных","Нет данных","Нет данных","Нет данных","Нет данных","Нет данных","Нет данных","Нет данных","Нет данных"]
[{"$f":"A224+1","v":201},"Нет данных","Кобаненко","Константин","Николаевич","Нет данных",null,"Нет данных","Нет данных","Нет данных","Нет данных","Нет данных","Нет данных","Нет данных","Нет данных","Нет данных","Нет данных","Нет данных"]
[{"$f":"A225+1","v":202},"Нет данных","Воронцов","Сергей","Дмитриевич","Нет данных",null,"Нет данных","Нет данных","Нет данных","Нет данных","Нет данных","Нет данных","Нет данных","Нет данных","Нет данных","Нет данных","Нет данных"]
[203,"Нет данных","Небесская","Татьяна","Владимировна","Нет данных",null,"Нет данных","Нет данных","Нет данных","Нет данных","Нет данных","Нет данных","Нет данных","Нет данных","Нет данных","Нет данных","Нет данных"]
[204,"Нет данных","Небесская","Татьяна","Владимировна","Нет данных",null,"Нет данных","Нет данных","Нет данных","Нет данных","Нет данных","Нет данных","Нет данных","Нет данных","Нет данных","Нет данных","Нет данных"]
[205,"Нет данных","Небесская","Татьяна","Владимировна","Нет данных",null,"Нет данных","Нет данных","Нет данных","Нет данных","Нет данных","Нет данных","Нет данных","Нет данных","Нет данных","Нет данных","Нет данных"]
[206,"Нет данных","Филиппова","Лариса","Михайловна","Нет данных",null,"Нет данных","Нет данных","Нет данных","Нет данных","Нет данных","Нет данных","Нет данных","Нет данных","Нет данных","Нет данных","Нет данных"]
[207,"Нет данных","Филиппова","Лариса","Михайловна","Нет данных",null,"Нет данных","Нет данных","Нет данных","Нет данных","Нет данных","Нет данных","Нет данных","Нет данных","Нет данных","Нет данных","Нет данных"]
[208,"Нет данных","Илюшина","Светлана","Яковлевна","Нет данных",null,"Нет данных","Нет данных","Нет данных","Нет данных","Нет данных","Нет данных","Нет данных","Нет данных","Нет данных","Нет данных","Нет данных"]
[209,"Нет данных","Тюрина","Надежда","Александровна","Нет данных",null,"Нет данных","Нет данных","Нет данных","Нет данных","Нет данных","Нет данных","Нет данных","Нет данных","Нет данных","Нет данных","Нет данных"]
[210,"Нет данных","Шипов","Валерий","Иванович","Нет данных",null,"Нет данных","Нет данных","Нет данных","Нет данных","Нет данных","Нет данных","Нет данных","Нет данных","Нет данных","Нет данных","Нет данных"]
[211,"Нет данных","Шипов","Валерий","Иванович","Нет данных",null,"Нет данных","Нет данных","Нет данных","Нет данных","Нет данных","Нет данных","Нет данных","Нет данных","Нет данных","Нет данных","Нет данных"]
[212,"Нет данных","Хренов","Михаил","Михайлович","Нет данных",null,"Нет данных","Нет данных","Нет данных","Нет данных","Нет данных","Нет данных","Нет данных","Нет данных","Нет данных","Нет данных","Нет данных"]
[213,"Нет данных","Лисакевич","С.","А.","Нет данных",null,"Нет данных","Нет данных","Нет данных","Нет данных","Нет данных","Нет данных","Нет данных","Нет данных","Нет данных","Нет данных","Нет данных"]
[214,"Нет данных","Скударь","Денис","Олегович","Нет данных",null,"Нет данных","Нет данных","Нет данных","Нет данных","Нет данных","Нет данных","Нет данных","Нет данных","Нет данных","Нет данных","Нет данных"]
[215,"Нет данных","Лисакевич","С.","А.","Нет данных",null,"Нет данных","Нет данных","Нет данных","Нет данных","Нет данных","Нет данных","Нет данных","Нет данных","Нет данных","Нет данных","Нет данных"]
[216,"Нет данных","Воробьева","Людмила","Борисовна","Нет данных",null,"Нет данных","Нет данных","Нет данных","Нет данных","Нет данных","Нет данных","Нет данных","Нет данных","Нет данных","Нет данных","Нет данных"]
[217,"Нет данных","Веригина","Елена","Николаевна","Нет данных",null,"Нет данных","Нет данных","Нет данных","Нет данных","Нет данных","Нет данных","Нет данных","Нет данных","Нет данных","Нет данных","Нет данных"]
[218,"Нет данных","Харчук","Алексей","Сергеевич","Нет данных",null,"Нет данных","Нет данных","Нет данных","Нет данных","Нет данных","Нет данных","Нет данных","Нет данных","Нет данных","Нет данных","Нет данных"]
[219,"Нет данных","Репьёв","А.","Е","Нет данных",null,"Нет данных","Нет данных","Нет данных","Нет данных","Нет данных","Нет данных","Нет данных","Нет данных","Нет данных","Нет данных","Нет данных"]
[220,"Нет данных","Репьёв","А.","Е","Нет данных",null,"Нет данных","Нет данных","Нет данных","Нет данных","Нет данных","Нет данных","Нет данных","Нет данных","Нет данных","Нет данных","Нет данных"]
[221,"Нет данных","Лошкарев","Александр","Вячеславович","Нет данных",null,"Нет данных","Нет данных","Нет данных","Нет данных","Нет данных","Нет данных","Нет данных","Нет данных","Нет данных","Нет данных","Нет данных"]
[222,"Нет данных","Вязникова","Наталья","Юрьевна","Нет данных",null,"Нет данных","Нет данных","Нет данных","Нет данных","Нет данных","Нет данных","Нет данных","Нет данных","Нет данных","Нет данных","Нет данных"]
[223,"Нет данных","Савченко","Марина","Борисовна","Нет данных",null,"Нет данных","Нет данных","Нет данных","Нет данных","Нет данных","Нет данных","Нет данных","Нет данных","Нет данных","Нет данных","Нет данных"]
[224,"Нет данных","Пономарева","Елена","Анатольевна","Нет данных",null,"Нет данных","Нет данных","Нет данных","Нет данных","Нет данных","Нет данных","Нет данных","Нет данных","Нет данных","Нет данных","Нет данных"]
[225,"Нет данных","Пономарева","Любовь","Егоровна","Нет данных",null,"Нет данных","Нет данных","Нет данных","Нет данных","Нет данных","Нет данных","Нет данных","Нет данных","Нет данных","Нет данных","Нет данных"]
[226,"Нет данных","Власов","Валерий","Павлович","Нет данных",null,"Нет данных","Нет данных","Нет данных","Нет данных","Нет данных","Нет данных","Нет данных","Нет данных","Нет данных","Нет данных","Нет данных"]
[227,"Нет данных","Черниченко","Наталия","Васильевна","Нет данных",null,"Нет данных","Нет данных","Нет данных","Нет данных","Нет данных","Нет данных","Нет данных","Нет данных","Нет данных","Нет данных","Нет данных"]
[228,"Нет данных","Иванова","Татьяна","Робертовна","Нет данных",null,"Нет данных","Нет данных","Нет данных","Нет данных","Нет данных","Нет данных","Нет данных","Нет данных","Нет данных","Нет данных","Нет данных"]
[229,"Нет данных","Винокурова","Людмила","Николаевна","Нет данных",null,"Нет данных","Нет данных","Нет данных","Нет данных","Нет данных","Нет данных","Нет данных","Нет данных","Нет данных","Нет данных","Нет данных"]
[230,"Нет данных","Макаровская","Ольга","Александровна","Нет данных",null,"Нет данных","Нет данных","Нет данных","Нет данных","Нет данных","Нет данных","Нет данных","Нет данных","Нет данных","Нет данных","Нет данных"]
[231,"Нет данных","Сакович","Галина","Борисовна","Нет данных",null,"Нет данных","Нет данных","Нет данных","Нет данных","Нет данных","Нет данных","Нет данных","Нет данных","Нет данных","Нет данных","Нет данных"]
[232,"Нет данных","Рязанцева","Татьяна","Павловна","Нет данных",null,"Нет данных","Нет данных","Нет данных","Нет данных","Нет данных","Нет данных","Нет данных","Нет данных","Нет данных","Нет данных","Нет данных"]
[232,"Нет данных","Рудоманов","Сергей","Юрьевич","Нет данных",null,"Нет данных","Нет данных","Нет данных","Нет данных","Нет данных","Нет данных","Нет данных","Нет данных","Нет данных","Нет данных","Нет данных"]
[233,"Нет данных","Шмаренков","Виктор","Юрьевич","Нет данных",null,"Нет данных","Нет данных","Нет данных","Нет данных","Нет данных","Нет данных","Нет данных","Нет данных","Нет данных","Нет данных","Нет данных"]
[234,"Нет данных","Капитанова","Надежда","Евгеньевна","Нет данных",null,"Нет данных","Нет данных","Нет данных","Нет данных","Нет данных","Нет данных","Нет данных","Нет данных","Нет данных","Нет данных","Нет данных"]
["  -.-","Нет данных","Капитанова","Мария","Сергеевна","Нет данных",null,"Нет данных","Нет данных","Нет данных","Нет данных","Нет данных","Нет данных","Нет данных","Нет данных","Нет данных","Нет данных","Нет данных"]
[235,"Нет данных","Володин","Алексей","Евгеньевич","Нет данных",null,"Нет данных","Нет данных","Нет данных","Нет данных","Нет данных","Нет данных","Нет данных","Нет данных","Нет данных","Нет данных","Нет данных"]
[{"$f":"A261+1","v":236},"Нет данных","Орел","Наталья","Владимировна","Нет данных",null,"Нет данных","Нет данных","Нет данных","Нет данных","Нет данных","Нет данных","Нет данных","Нет данных","Нет данных","Нет данных","Нет данных"]
[{"$f":"A262+1","v":237},"Нет данных","Орел","Наталья","Владимировна","Нет данных",null,"Нет данных","Нет данных","Нет данных","Нет данных","Нет данных","Нет данных","Нет данных","Нет данных","Нет данных","Нет данных","Нет данных"]
[238,"Нет данных","Попелковская","Виктория","Александровна","Нет данных",null,"Нет данных","Нет данных","Нет данных","Нет данных","Нет данных","Нет данных","Нет данных","Нет данных","Нет данных","Нет данных","Нет данных"]
[239,"Нет данных","Вязникова","Наталья","Юрьевна","Нет данных",null,"Нет данных","Нет данных","Нет данных","Нет данных","Нет данных","Нет данных","Нет данных","Нет данных","Нет данных","Нет данных","Нет данных"]
[240,"Нет данных","Семендин","Дмитрий","Евгеньевич","Нет данных",null,"Нет данных","Нет данных","Нет данных","Нет данных","Нет данных","Нет данных","Нет данных","Нет данных","Нет данных","Нет данных","Нет данных"]
[241,"Нет данных","Семендин","Дмитрий","Евгеньевич","Нет данных",null,"Нет данных","Нет данных","Нет данных","Нет данных","Нет данных","Нет данных","Нет данных","Нет данных","Нет данных","Нет данных","Нет данных"]
[242,"Нет данных","Семендин","Дмитрий","Евгеньевич","Нет данных",null,"Нет данных","Нет данных","Нет данных","Нет данных","Нет данных","Нет данных","Нет данных","Нет данных","Нет данных","Нет данных","Нет данных"]
[243,"Нет данных","Юрьева","Раиса","Николаевна","Нет данных",null,"Нет данных","Нет данных","Нет данных","Нет данных","Нет данных","Нет данных","Нет данных","Нет данных","Нет данных","Нет данных","Нет данных"]
[244,"Нет данных","Хрестин","Алексей","Григорьевич","Нет данных",null,"Нет данных","Нет данных","Нет данных","Нет данных","Нет данных","Нет данных","Нет данных","Нет данных","Нет данных","Нет данных","Нет данных"]
[245,"Нет данных","Ватутина","Галина","Алексеевна","Нет данных",null,"Нет данных","Нет данных","Нет данных","Нет данных","Нет данных","Нет данных","Нет данных","Нет данных","Нет данных","Нет данных","Нет данных"]
[246,"Нет данных","Ватутина","Галина","Алексеевна","Нет данных",null,"Нет данных","Нет данных","Нет данных","Нет данных","Нет данных","Нет данных","Нет данных","Нет данных","Нет данных","Нет данных","Нет данных"]
[247,"Нет данных","Сухорукова","Екатерина","Александровна","Нет данных",null,"Нет данных","Нет данных","Нет данных","Нет данных","Нет данных","Нет данных","Нет данных","Нет данных","Нет данных","Нет данных","Нет данных"]
[248,"Нет данных","Сакович","Николай","Михайлович","Нет данных",null,"Нет данных","Нет данных","Нет данных","Нет данных","Нет данных","Нет данных","Нет данных","Нет данных","Нет данных","Нет данных","Нет данных"]
[249,"Нет данных","Белодедова","Тамара","Игоревна","Нет данных",null,"Нет данных","Нет данных","Нет данных","Нет данных","Нет данных","Нет данных","Нет данных","Нет данных","Нет данных","Нет данных","Нет данных"]
[250,"Нет данных","Малышева","Галина","Анатольевна","Нет данных",null,"Нет данных","Нет данных","Нет данных","Нет данных","Нет данных","Нет данных","Нет данных","Нет данных","Нет данных","Нет данных","Нет данных"]
[251,"Нет данных","Малышева","Галина","Анатольевна","Нет данных",null,"Нет данных","Нет данных","Нет данных","Нет данных","Нет данных","Нет данных","Нет данных","Нет данных","Нет данных","Нет данных","Нет данных"]
[252,"Нет данных","Метелкин","Олег","Юрьевич","Нет данных",null,"Нет данных","Нет данных","Нет данных","Нет данных","Нет данных","Нет данных","Нет данных","Нет данных","Нет данных","Нет данных","Нет данных"]
[253,"Нет данных","Кирющенко","Раиса","Владимировна","Нет данных",null,"Нет данных","Нет данных","Нет данных","Нет данных","Нет данных","Нет данных","Нет данных","Нет данных","Нет данных","Нет данных","Нет данных"]
[254,"Нет данных","Петрова","Татьяна","Алексеевна","Нет данных",null,"Нет данных","Нет данных","Нет данных","Нет данных","Нет данных","Нет данных","Нет данных","Нет данных","Нет данных","Нет данных","Нет данных"]
[255,"Нет данных","Одинокова","Любовь","Евдигеевна","Нет данных",null,"Нет данных","Нет данных","Нет данных","Нет данных","Нет данных","Нет данных","Нет данных","Нет данных","Нет данных","Нет данных","Нет данных"]
[256,"Нет данных","","","","Нет данных",null,"Нет данных","Нет данных","Нет данных","Нет данных","Нет данных","Нет данных","Нет данных","Нет данных","Нет данных","Нет данных","Нет данных"]
[257,"Нет данных","Нет данных","Нет данных","Нет данных","Нет данных",null,"Нет данных","Нет данных","Нет данных","Нет данных","Нет данных","Нет данных","Нет данных","Нет данных","Нет данных","Нет данных","Нет данных"]
[258,"Нет данных","Жежель","Олеся","Николаевна","Нет данных",null,"Нет данных","Нет данных","Нет данных","Нет данных","Нет данных","Нет данных","Нет данных","Нет данных","Нет данных","Нет данных","Нет данных"]
[259,"Нет данных","Нет данных","Нет данных","Нет данных","Нет данных",null,"Нет данных","Нет данных","Нет данных","Нет данных","Нет данных","Нет данных","Нет данных","Нет данных","Нет данных","Нет данных","Нет данных"]
[260,"Нет данных","Светлов","Денис","Евгеньевич","Нет данных",null,"Нет данных","Нет данных","Нет данных","Нет данных","Нет данных","Нет данных","Нет данных","Нет данных","Нет данных","Нет данных","Нет данных"]
[261,"B","C","D","E","F",null,"H","I","J","K","L","M","N","O","P","Q","R"]
[262,"Нет данных","","","","Нет данных",null,"Нет данных","Нет данных","Нет данных","Нет данных","Нет данных","Нет данных","Нет данных","Нет данных","Нет данных","Нет данных","Нет данных"]
[263,"Нет данных","Великодный","Алексей","Валентинович","Нет данных",null,"Нет данных","Нет данных","Нет данных","Нет данных","Нет данных","Нет данных","Нет данных","Нет данных","Нет данных","Нет данных","Нет данных"]
[264,"Нет данных","","","","Нет данных",null,"Нет данных","Нет данных","Нет данных","Нет данных","Нет данных","Нет данных","Нет данных","Нет данных","Нет данных","Нет данных","Нет данных"]
[265,"Нет данных","Жежель","Олеся","Николаевна","Нет данных",null,"Нет данных","Нет данных","Нет данных","Нет данных","Нет данных","Нет данных","Нет данных","Нет данных","Нет данных","Нет данных","Нет данных"]
[266,"Нет данных","Большаков","С.","В.","Нет данных",null,"Нет данных","Нет данных","Нет данных","Нет данных","Нет данных","Нет данных","Нет данных","Нет данных","Нет данных","Нет данных","Нет данных"]
[267,"Нет данных","Нет данных","Нет данных","Нет данных","Нет данных",null,"Нет данных","Нет данных","Нет данных","Нет данных","Нет данных","Нет данных","Нет данных","Нет данных","Нет данных","Нет данных","Нет данных"]
[268,"Нет данных","Великодный","Алексей","Валентинович","Нет данных",null,"Нет данных","Нет данных","Нет данных","Нет данных","Нет данных","Нет данных","Нет данных","Нет данных","Нет данных","Нет данных","Нет данных"]
[269,"Нет данных","Брагина","Галина","Викторовна","Нет данных",null,"Нет данных","Нет данных","Нет данных","Нет данных","Нет данных","Нет данных","Нет данных","Нет данных","Нет данных","Нет данных","Нет данных"]
[270,"Нет данных","Брагина","Галина","Викторовна","Нет данных",null,"Нет данных","Нет данных","Нет данных","Нет данных","Нет данных","Нет данных","Нет данных","Нет данных","Нет данных","Нет данных","Нет данных"]
["270А","Нет данных","Брагина","Галина","Викторовна","Нет данных",null,"Нет данных","Нет данных","Нет данных","Нет данных","Нет данных","Нет данных","Нет данных","Нет данных","Нет данных","Нет данных","Нет данных"]
[271,"Нет данных","Салтыков","Владимир","Анатольевич","Нет данных",null,"Нет данных","Нет данных","Нет данных","Нет данных","Нет данных","Нет данных","Нет данных","Нет данных","Нет данных","Нет данных","Нет данных"]
["  --..","Нет данных","Сицкий","Игорь","Борисович","Нет данных",null,"Нет данных","Нет данных","Нет данных","Нет данных","Нет данных","Нет данных","Нет данных","Нет данных","Нет данных","Нет данных","Нет данных"]
[272,"Нет данных","Салтыков","Владимир","Анатольевич","Нет данных",null,"Нет данных","Нет данных","Нет данных","Нет данных","Нет данных","Нет данных","Нет данных","Нет данных","Нет данных","Нет данных","Нет данных"]
[{"$f":"A300+1","v":273},"Нет данных","Захарова","Татьяна","Евгеньевна","Нет данных",null,"Нет данных","Нет данных","Нет данных","Нет данных","Нет данных","Нет данных","Нет данных","Нет данных","Нет данных","Нет данных","Нет данных"]
[{"$f":"A301+1","v":274},"Нет данных","Захарова","Татьяна","Евгеньевна","Нет данных",null,"Нет данных","Нет данных","Нет данных","Нет данных","Нет данных","Нет данных","Нет данных","Нет данных","Нет данных","Нет данных","Нет данных"]
[275,"Нет данных","Захарова","Татьяна","Евгеньевна","Нет данных",null,"Нет данных","Нет данных","Нет данных","Нет данных","Нет данных","Нет данных","Нет данных","Нет данных","Нет данных","Нет данных","Нет данных"]
[276,"Нет данных","Карпов","Александр","Васильевич","Нет данных",null,"Нет данных","Нет данных","Нет данных","Нет данных","Нет данных","Нет данных","Нет данных","Нет данных","Нет данных","Нет данных","Нет данных"]
[277,"Нет данных","Кобелева","Надежда","Сергеевна","Нет данных",null,"Нет данных","Нет данных","Нет данных","Нет данных","Нет данных","Нет данных","Нет данных","Нет данных","Нет данных","Нет данных","Нет данных"]
[278,"Нет данных","Черепнов","Игорь","Валентинович","Нет данных",null,"Нет данных","Нет данных","Нет данных","Нет данных","Нет данных","Нет данных","Нет данных","Нет данных","Нет данных","Нет данных","Нет данных"]
[279,"Нет данных","Пронина","Валентина","Гавриловна","Нет данных",null,"Нет данных","Нет данных","Нет данных","Нет данных","Нет данных","Нет данных","Нет данных","Нет данных","Нет данных","Нет данных","Нет данных"]
[280,"Нет данных","Андронычева","Елена","Николаевна","Нет данных",null,"Нет данных","Нет данных","Нет данных","Нет данных","Нет данных","Нет данных","Нет данных","Нет данных","Нет данных","Нет данных","Нет данных"]
[281,"Нет данных","Лапина","Ирина","Павловна","Нет данных",null,"Нет данных","Нет данных","Нет данных","Нет данных","Нет данных","Нет данных","Нет данных","Нет данных","Нет данных","Нет данных","Нет данных"]
[282,"Нет данных","Лапина","Ирина","Павловна","Нет данных",null,"Нет данных","Нет данных","Нет данных","Нет данных","Нет данных","Нет данных","Нет данных","Нет данных","Нет данных","Нет данных","Нет данных"]
[283,"Нет данных","Мясникова","Любовь","Яковлевна","Нет данных",null,"Нет данных","Нет данных","Нет данных","Нет данных","Нет данных","Нет данных","Нет данных","Нет данных","Нет данных","Нет данных","Нет данных"]
[284,"Нет данных","Зайцев","Игорь","Адольфович","Нет данных",null,"Нет данных","Нет данных","Нет данных","Нет данных","Нет данных","Нет данных","Нет данных","Нет данных","Нет данных","Нет данных","Нет данных"]
[285,"@","Потешкин","Александр","Степанович","Нет данных",null,"Нет данных","Нет данных","Нет данных","Нет данных","Нет данных","Нет данных","Нет данных","Нет данных","Нет данных","Нет данных","Нет данных"]
[286,"Нет данных","Сергеенко","Вячеслав","Васильевич","Нет данных",null,"Нет данных","Нет данных","Нет данных","Нет данных","Нет данных","Нет данных","Нет данных","Нет данных","Нет данных","Нет данных","Нет данных"]
[287,"Нет данных","Лебедев","Александр","Иванович","Нет данных",null,"Нет данных","Нет данных","Нет данных","Нет данных","Нет данных","Нет данных","Нет данных","Нет данных","Нет данных","Нет данных","Нет данных"]
[288,"Нет данных","Фомина","Ирина","Александровна","Нет данных",null,"Нет данных","Нет данных","Нет данных","Нет данных","Нет данных","Нет данных","Нет данных","Нет данных","Нет данных","Нет данных","Нет данных"]
[289,"Нет данных","Фомина","Ирина","Александровна","Нет данных",null,"Нет данных","Нет данных","Нет данных","Нет данных","Нет данных","Нет данных","Нет данных","Нет данных","Нет данных","Нет данных","Нет данных"]
[290,"Нет данных","Кондратьев","Александр","Григорьевич","Нет данных",null,"Нет данных","Нет данных","Нет данных","Нет данных","Нет данных","Нет данных","Нет данных","Нет данных","Нет данных","Нет данных","Нет данных"]
[291,"Нет данных","Кобелева","Надежда","Сергеевна","Нет данных",null,"Нет данных","Нет данных","Нет данных","Нет данных","Нет данных","Нет данных","Нет данных","Нет данных","Нет данных","Нет данных","Нет данных"]
[292,"Нет данных","Когарева-Полянина","Ольга","Валерьевна","Нет данных",null,"Нет данных","Нет данных","Нет данных","Нет данных","Нет данных","Нет данных","Нет данных","Нет данных","Нет данных","Нет данных","Нет данных"]
[293,"Нет данных","Смирнова","Наталья","Николаевна","Нет данных",null,"Нет данных","Нет данных","Нет данных","Нет данных","Нет данных","Нет данных","Нет данных","Нет данных","Нет данных","Нет данных","Нет данных"]
[294,"Нет данных","Смирнова","Наталья","Николаевна","Нет данных",null,"Нет данных","Нет данных","Нет данных","Нет данных","Нет данных","Нет данных","Нет данных","Нет данных","Нет данных","Нет данных","Нет данных"]
[295,"Нет данных","Сундуков","Павел","Анатольевич","Нет данных",null,"Нет данных","Нет данных","Нет данных","Нет данных","Нет данных","Нет данных","Нет данных","Нет данных","Нет данных","Нет данных","Нет данных"]
[296,"Нет данных","Фомина","Ирина","Александровна","Нет данных",null,"Нет данных","Нет данных","Нет данных","Нет данных","Нет данных","Нет данных","Нет данных","Нет данных","Нет данных","Нет данных","Нет данных"]
[297,"Нет данных","Удовенко","Николай","Иванович","Нет данных",null,"Нет данных","Нет данных","Нет данных","Нет данных","Нет данных","Нет данных","Нет данных","Нет данных","Нет данных","Нет данных","Нет данных"]
[298,"Нет данных","Кондратьев","Александр","Григорьевич","Нет данных",null,"Нет данных","Нет данных","Нет данных","Нет данных","Нет данных","Нет данных","Нет данных","Нет данных","Нет данных","Нет данных","Нет данных"]
[299,"Нет данных","Кобелев","Владимир","Викторович","Нет данных",null,"Нет данных","Нет данных","Нет данных","Нет данных","Нет данных","Нет данных","Нет данных","Нет данных","Нет данных","Нет данных","Нет данных"]
[300,"Нет данных","Когарева-Полянина","Ольга","Валерьевна","Нет данных",null,"Нет данных","Нет данных","Нет данных","Нет данных","Нет данных","Нет данных","Нет данных","Нет данных","Нет данных","Нет данных","Нет данных"]
[301,"Нет данных","Полянин","Константин","Олегович","Нет данных",null,"Нет данных","Нет данных","Нет данных","Нет данных","Нет данных","Нет данных","Нет данных","Нет данных","Нет данных","Нет данных","Нет данных"]
[302,"Нет данных","Кутузов","Валерий","Павлович","Нет данных",null,"Нет данных","Нет данных","Нет данных","Нет данных","Нет данных","Нет данных","Нет данных","Нет данных","Нет данных","Нет данных","Нет данных"]
[303,"Нет данных","Паукова","Нина","Петровна","Нет данных",null,"Нет данных","Нет данных","Нет данных","Нет данных","Нет данных","Нет данных","Нет данных","Нет данных","Нет данных","Нет данных","Нет данных"]
[304,"Нет данных","Механтьев","Валерий","Анатольевич","Нет данных",null,"Нет данных","Нет данных","Нет данных","Нет данных","Нет данных","Нет данных","Нет данных","Нет данных","Нет данных","Нет данных","Нет данных"]
[305,"Нет данных","Евзюкина","Н.","Н.","Нет данных",null,"Нет данных","Нет данных","Нет данных","Нет данных","Нет данных","Нет данных","Нет данных","Нет данных","Нет данных","Нет данных","Нет данных"]
[306,"Нет данных","Горохова","Ольга","Евгеньевна","Нет данных",null,"Нет данных","Нет данных","Нет данных","Нет данных","Нет данных","Нет данных","Нет данных","Нет данных","Нет данных","Нет данных","Нет данных"]
[307,"Нет данных","Горохова","Ольга","Евгеньевна","Нет данных",null,"Нет данных","Нет данных","Нет данных","Нет данных","Нет данных","Нет данных","Нет данных","Нет данных","Нет данных","Нет данных","Нет данных"]
[308,"Нет данных","Сурханова","Марина","Сергеевна","Нет данных",null,"Нет данных","Нет данных","Нет данных","Нет данных","Нет данных","Нет данных","Нет данных","Нет данных","Нет данных","Нет данных","Нет данных"]
[309,"Нет данных","Баронкин","Александр","Вячеславович","Нет данных",null,"Нет данных","Нет данных","Нет данных","Нет данных","Нет данных","Нет данных","Нет данных","Нет данных","Нет данных","Нет данных","Нет данных"]
[310,"Нет данных","Джафарова","Рамиля","Зохраб Кзы","Нет данных",null,"Нет данных","Нет данных","Нет данных","Нет данных","Нет данных","Нет данных","Нет данных","Нет данных","Нет данных","Нет данных","Нет данных"]
[311,"Нет данных","Чертовских","Ольга","Борисовна","Нет данных",null,"Нет данных","Нет данных","Нет данных","Нет данных","Нет данных","Нет данных","Нет данных","Нет данных","Нет данных","Нет данных","Нет данных"]
[312,"Нет данных","Чертовских","Ольга","Борисовна","Нет данных",null,"Нет данных","Нет данных","Нет данных","Нет данных","Нет данных","Нет данных","Нет данных","Нет данных","Нет данных","Нет данных","Нет данных"]
[313,"Нет данных","Крючкина","Лидия","Ивановна","Нет данных",null,"Нет данных","Нет данных","Нет данных","Нет данных","Нет данных","Нет данных","Нет данных","Нет данных","Нет данных","Нет данных","Нет данных"]
[314,"Нет данных","Крючкин","Евгений","Анатольевич","Нет данных",null,"Нет данных","Нет данных","Нет данных","Нет данных","Нет данных","Нет данных","Нет данных","Нет данных","Нет данных","Нет данных","Нет данных"]
[315,"Нет данных","Баронкин","Александр","Вячеславович","Нет данных",null,"Нет данных","Нет данных","Нет данных","Нет данных","Нет данных","Нет данных","Нет данных","Нет данных","Нет данных","Нет данных","Нет данных"]
[316,"Нет данных","Зеленина","Татьяна","Ивановна","Нет данных",null,"Нет данных","Нет данных","Нет данных","Нет данных","Нет данных","Нет данных","Нет данных","Нет данных","Нет данных","Нет данных","Нет данных"]
[317,"Нет данных","Зеленина","Татьяна","Ивановна","Нет данных",null,"Нет данных","Нет данных","Нет данных","Нет данных","Нет данных","Нет данных","Нет данных","Нет данных","Нет данных","Нет данных","Нет данных"]
[318,"Нет данных","Деев","Александр","Викторович","Нет данных",null,"Нет данных","Нет данных","Нет данных","Нет данных","Нет данных","Нет данных","Нет данных","Нет данных","Нет данных","Нет данных","Нет данных"]
[319,"Нет данных","Морозова","Людмила","Андреевна","Нет данных",null,"Нет данных","Нет данных","Нет данных","Нет данных","Нет данных","Нет данных","Нет данных","Нет данных","Нет данных","Нет данных","Нет данных"]
[320,"Нет данных","Морозова","Людмила","Андреевна","Нет данных",null,"Нет данных","Нет данных","Нет данных","Нет данных","Нет данных","Нет данных","Нет данных","Нет данных","Нет данных","Нет данных","Нет данных"]
[321,"Нет данных","Титов","Сергей","Александрович","Нет данных",null,"Нет данных","Нет данных","Нет данных","Нет данных","Нет данных","Нет данных","Нет данных","Нет данных","Нет данных","Нет данных","Нет данных"]
[322,"Нет данных","Зеленина","Татьяна","Ивановна","Нет данных",null,"Нет данных","Нет данных","Нет данных","Нет данных","Нет данных","Нет данных","Нет данных","Нет данных","Нет данных","Нет данных","Нет данных"]
[323,"Нет данных","Зеленина","Татьяна","Ивановна","Нет данных",null,"Нет данных","Нет данных","Нет данных","Нет данных","Нет данных","Нет данных","Нет данных","Нет данных","Нет данных","Нет данных","Нет данных"]
[324,"Нет данных","Лобызов","Александр","Владимирович","Нет данных",null,"Нет данных","Нет данных","Нет данных","Нет данных","Нет данных","Нет данных","Нет данных","Нет данных","Нет данных","Нет данных","Нет данных"]
[325,"Нет данных","Лобызов","Александр","Владимирович","Нет данных",null,"Нет данных","Нет данных","Нет данных","Нет данных","Нет данных","Нет данных","Нет данных","Нет данных","Нет данных","Нет данных","Нет данных"]
[326,"Нет данных","Лобызов","Александр","Владимирович","Нет данных",null,"Нет данных","Нет данных","Нет данных","Нет данных","Нет данных","Нет данных","Нет данных","Нет данных","Нет данных","Нет данных","Нет данных"]
[327,"Нет данных","Чистякова","Ольга","Анатольевна","Нет данных",null,"Нет данных","Нет данных","Нет данных","Нет данных","Нет данных","Нет данных","Нет данных","Нет данных","Нет данных","Нет данных","Нет данных"]
[328,"Нет данных","Коновалова","Елена","Федоровна","Нет данных",null,"Нет данных","Нет данных","Нет данных","Нет данных","Нет данных","Нет данных","Нет данных","Нет данных","Нет данных","Нет данных","Нет данных"]
[329,"Нет данных","Коновалова","Елена","Федоровна","Нет данных",null,"Нет данных","Нет данных","Нет данных","Нет данных","Нет данных","Нет данных","Нет данных","Нет данных","Нет данных","Нет данных","Нет данных"]
[330,"Нет данных","Задачина","Раиса","Ивановна","Нет данных",null,"Нет данных","Нет данных","Нет данных","Нет данных","Нет данных","Нет данных","Нет данных","Нет данных","Нет данных","Нет данных","Нет данных"]
[331,"Нет данных","Фирсова","Зоя","Ивановна","Нет данных",null,"Нет данных","Нет данных","Нет данных","Нет данных","Нет данных","Нет данных","Нет данных","Нет данных","Нет данных","Нет данных","Нет данных"]
[332,"Нет данных","Кочетков","Борис","Александрович","Нет данных",null,"Нет данных","Нет данных","Нет данных","Нет данных","Нет данных","Нет данных","Нет данных","Нет данных","Нет данных","Нет данных","Нет данных"]
[333,"Нет данных","Щинов","Кирилл","Станиславович","Нет данных",null,"Нет данных","Нет данных","Нет данных","Нет данных","Нет данных","Нет данных","Нет данных","Нет данных","Нет данных","Нет данных","Нет данных"]
[334,"Нет данных","Пушкина","Лидия","Александровна","Нет данных",null,"Нет данных","Нет данных","Нет данных","Нет данных","Нет данных","Нет данных","Нет данных","Нет данных","Нет данных","Нет данных","Нет данных"]
[null,null,null,null,null,null,null,null,null,null,null,null,null,null,null,null,null,null,"[42]"]

{"sheet":"ПОИСК","index":1,"n_rows":16,"n_cols":13,"rows_kept":16,"cut":false,"hidden":false,"merged":[[2,0,2,1]]}
[3]
[]
["Поиск по № уч.",null,3,null,"Редактор записей",null,null,null,null,"Редактор записей"]
[]
[null,"Фамилия",{"$f":"СПИСОК!C5","v":"Баранова"},null,null,null,"Площадь участка",{"$f":"СПИСОК!M5","v":"Нет данных"}]
[null,"Имя",{"$f":"СПИСОК!D5","v":"Мария"},null,null,null,"Кадастр",{"$f":"СПИСОК!N5","v":"Нет данных"}]
[null,"Очество",{"$f":"СПИСОК!E5","v":"Михайловна"},null,null,null,"Улица",{"$f":"СПИСОК!O5","v":"Нет данных"}]
[null,"Член СТСН",{"$f":"СПИСОК!F5","v":"Нет данных"},null,"Привет",null,"Газ учред.",{"$f":"СПИСОК!P5","v":"Нет данных"}]
[null," Основной Тел.",{"$f":"СПИСОК!G5","v":{"$error":"#VALUE!"}},null,null,null,"Газ польз.",{"$f":"СПИСОК!Q5","v":"Нет данных"}]
[null,"Резервный тел.",{"$f":"СПИСОК!H5","v":"Нет данных"}]
[null,"Личный Email",{"$f":"СПИСОК!I5","v":"Нет данных"},null,null,null,null,null,123]
[null,"Почтовый индекс",{"$f":"СПИСОК!J5","v":"Нет данных"}]
[null,"Город",{"$f":"СПИСОК!K5","v":"Нет данных"}]
[null,"Адрес регистрации",{"$f":"СПИСОК!L5","v":"Нет данных"}]
[]
[null,null,null,null,null,null,null,null,null,null,null,null,123]